bitfinex/quotes_BTCUSD_20250525
["timestamp","ask_amount","ask_price","bid_price","bid_amount"]
[1748190094764,0.00109467,106520.0,106510.0,2.90750071]
[1748190094981,0.00109467,106520.0,106510.0,2.91050071]
[1748190096112,0.00109467,106520.0,106510.0,1.11019556]
[1748190096334,0.00109467,106520.0,106510.0,1.81268871]
[1748190098571,0.00109467,106520.0,106510.0,2.52972271]
[1748190100634,0.0748118,106570.0,106540.0,0.02964085]
[1748190100871,0.16450902,106570.0,106550.0,2.05214219]
[1748190101106,0.16450902,106570.0,106550.0,1.02113315]
[1748190102239,0.16650902,106570.0,106550.0,1.02113315]
[1748190102488,0.16650902,106570.0,106560.0,0.14992]
[1748190102707,0.16850902,106570.0,106560.0,0.14992]
[1748190103168,0.18210902,106570.0,106550.0,0.70249315]
[1748190103390,0.18210902,106570.0,106560.0,0.14992]
[1748190103391,0.19730902,106570.0,106560.0,0.14992]
[1748190103612,0.12749722,106570.0,106560.0,0.001]
[1748190103835,0.13487993,106570.0,106560.0,0.001]
[1748190104055,0.10846272,106570.0,106550.0,0.31864]
[1748190104271,0.12034556,106560.0,106550.0,0.31864]
[1748190104493,0.12034556,106560.0,106550.0,0.31964]
[1748190104914,0.12034556,106560.0,106550.0,0.001]
[1748190105137,0.12034556,106560.0,106550.0,0.15092]
[1748190105587,0.12972915,106560.0,106550.0,0.15092]
[1748190105794,0.12972915,106560.0,106550.0,0.14992]
[1748190106055,0.12334556,106560.0,106550.0,0.15092]
[1748190106242,0.12334556,106560.0,106550.0,0.001]
[1748190106522,0.12334556,106560.0,106550.0,0.15096]
[1748190106732,0.12334556,106560.0,106550.0,0.00104]
[1748190106954,0.12634556,106560.0,106550.0,0.00104]
[1748190107687,0.13572915,106560.0,106550.0,0.00104]
[1748190107891,0.12634556,106560.0,106550.0,0.00104]
[1748190108693,0.145113,106560.0,106550.0,0.00104]
[1748190108949,0.33280059,106560.0,106550.0,0.00104]
[1748190109164,0.99218061,106560.0,106550.0,0.00104]
[1748190109384,0.33280138,106560.0,106550.0,0.00104]
[1748190110074,0.32980138,106560.0,106550.0,4e-05]
[1748190110286,0.67580138,106560.0,106550.0,0.00104]
[1748190110501,0.68280138,106560.0,106550.0,0.00104]
[1748190111275,0.68880138,106560.0,106550.0,0.00204]
[1748190111713,0.72880138,106560.0,106550.0,0.00204]
[1748190111883,0.73818576,106560.0,106550.0,0.00204]
[1748190112105,0.73818576,106560.0,106550.0,0.00040372]
[1748190112308,0.72880182,106560.0,106550.0,0.00040372]
[1748190112532,0.71941762,106560.0,106550.0,0.00040372]
[1748190113070,0.72941762,106560.0,106550.0,0.00040372]
[1748190117330,0.52234556,106560.0,106550.0,0.00040372]
[1748190117541,0.55049676,106560.0,106550.0,0.00040372]
[1748190117743,0.55049658,106560.0,106550.0,0.00040372]
[1748190117952,0.18234556,106560.0,106550.0,0.00040372]
[1748190118165,0.15154556,106560.0,106550.0,0.00040372]
[1748190118337,0.012,106560.0,106550.0,0.00040372]
[1748190118549,0.012,106560.0,106550.0,0.37374983]
[1748190118754,0.012,106560.0,106550.0,1.57560472]
[1748190118916,0.006,106560.0,106550.0,1.57496966]
[1748190119343,0.009,106560.0,106550.0,1.57596966]
[1748190119548,0.009,106560.0,106550.0,0.59271866]
[1748190119877,0.003,106560.0,106550.0,0.59271866]
[1748190120091,0.005,106560.0,106550.0,0.59271866]
[1748190120243,0.005,106560.0,106550.0,0.66763766]
[1748190120857,0.005,106560.0,106550.0,0.31964]
[1748190121084,0.09454556,106560.0,106550.0,0.31964]
[1748190124670,0.13462932,106560.0,106550.0,0.001]
[1748190125096,0.144013,106560.0,106550.0,0.001]
[1748190125516,0.15339703,106560.0,106550.0,0.001]
[1748190125940,0.16278123,106560.0,106550.0,0.001]
[1748190126149,0.3504697,106560.0,106550.0,0.001]
[1748190126351,0.15339764,106560.0,106550.0,0.001]
[1748190127311,0.34108576,106560.0,106550.0,0.001]
[1748190127529,0.35047014,106560.0,106550.0,0.001]
[1748190129448,0.14401379,106560.0,106550.0,0.001]
[1748190129678,0.13462932,106560.0,106550.0,0.001]
[1748190129888,0.09454556,106560.0,106550.0,0.001]
[1748190130116,0.11932923,106560.0,106550.0,0.001]
[1748190130328,0.11932932,106560.0,106550.0,0.001]
[1748190130537,0.10994556,106560.0,106550.0,0.001]
[1748190130746,0.12871326,106560.0,106550.0,0.001]
[1748190131339,0.13809738,106560.0,106550.0,0.001]
[1748190131551,0.15339738,106560.0,106550.0,0.001]
[1748190131889,0.14401326,106560.0,106550.0,0.001]
[1748190132097,0.13462923,106560.0,106550.0,0.001]
[1748190132531,0.14401308,106560.0,106550.0,0.001]
[1748190133243,0.14401299,106560.0,106550.0,0.001]
[1748190133601,0.15339684,106560.0,106550.0,0.001]
[1748190133918,0.15339684,106560.0,106550.0,0.00104]
[1748190134534,0.12524556,106560.0,106550.0,0.00104]
[1748190134763,0.09454556,106560.0,106530.0,0.18386657]
[1748190134932,0.08954556,106550.0,106540.0,0.0153]
[1748190135130,0.08954556,106550.0,106540.0,0.0316]
[1748190136217,0.09054556,106550.0,106540.0,0.0316]
[1748190136455,0.09054556,106550.0,106540.0,0.0339463]
[1748190136683,0.001,106550.0,106540.0,0.0339463]
[1748190136892,0.001,106550.0,106540.0,1.72644838]
[1748190137092,0.001,106550.0,106540.0,1.72410208]
[1748190137856,0.003,106550.0,106540.0,1.72510208]
[1748190138169,0.003,106550.0,106540.0,1.81464764]
[1748190139543,0.001,106550.0,106540.0,1.81364764]
[1748190139937,0.002,106550.0,106540.0,1.81564764]
[1748190140215,0.03274464,106560.0,106550.0,0.01454085]
[1748190140411,0.03274464,106560.0,106550.0,5.37532521]
[1748190140633,0.03274464,106560.0,106550.0,4.79416864]
[1748190141549,0.03274464,106560.0,106550.0,4.79616864]
[1748190141750,0.03274464,106560.0,106550.0,4.64624864]
[1748190141878,0.03274464,106560.0,106550.0,4.79616864]
[1748190142381,0.03274464,106560.0,106550.0,4.79609343]
[1748190142580,0.03274464,106560.0,106550.0,4.81029188]
[1748190142818,0.00015166,106570.0,106550.0,4.81129188]
[1748190143028,0.00015166,106570.0,106560.0,3.83386079]
[1748190144332,0.00015166,106570.0,106560.0,3.84347221]
[1748190144568,0.00015166,106570.0,106560.0,3.84447221]
[1748190145470,0.00015166,106570.0,106560.0,3.30726621]
[1748190145678,0.00015166,106570.0,106560.0,1.43192742]
[1748190146089,0.00115166,106570.0,106560.0,1.78646827]
[1748190146908,0.00115166,106570.0,106560.0,1.444236]
[1748190147118,0.00115166,106570.0,106560.0,1.762316]
[1748190148211,0.00115166,106570.0,106560.0,1.422316]
[1748190148425,0.00115166,106570.0,106560.0,1.43685685]
[1748190148625,0.00115166,106570.0,106560.0,1.45255685]
[1748190148828,0.00115166,106570.0,106560.0,1.46845685]
[1748190149008,0.00115166,106570.0,106560.0,1.80845685]
[1748190149650,0.00115166,106570.0,106560.0,0.70522085]
[1748190153381,0.00115166,106570.0,106560.0,2.03960285]
[1748190154900,0.00115166,106570.0,106560.0,1.99977885]
[1748190156649,0.00115166,106570.0,106560.0,2.65915808]
[1748190156858,0.00115166,106570.0,106560.0,2.74870364]
[1748190157799,0.00115166,106570.0,106560.0,2.10813864]
[1748190159253,0.00115166,106570.0,106560.0,2.13624464]
[1748190159646,0.00015166,106570.0,106560.0,2.13624464]
[1748190159844,0.00115166,106570.0,106560.0,2.13924464]
[1748190160045,0.00115166,106570.0,106560.0,2.18924464]
[1748190160441,0.00115166,106570.0,106560.0,2.18824464]
[1748190160839,0.0748118,106610.0,106590.0,0.031]
[1748190161041,0.07495414,106610.0,106600.0,0.71605773]
[1748190161240,0.07495414,106610.0,106600.0,1.05371285]
[1748190161697,0.07495414,106610.0,106600.0,1.71309208]
[1748190161867,0.00014234,106610.0,106600.0,1.75353649]
[1748190162238,0.00314234,106610.0,106600.0,1.75453649]
[1748190162654,0.00314234,106610.0,106600.0,1.56271149]
[1748190163094,0.00314234,106610.0,106600.0,1.17092949]
[1748190163301,0.00314234,106610.0,106600.0,0.80541426]
[1748190163711,0.00314234,106610.0,106600.0,0.84730126]
[1748190163924,0.00314234,106610.0,106600.0,0.80917526]
[1748190164388,0.00314234,106610.0,106600.0,0.83727826]
[1748190165010,0.00314234,106610.0,106600.0,0.83338226]
[1748190165206,0.00314234,106610.0,106600.0,0.71104826]
[1748190165354,0.00314234,106610.0,106600.0,0.82284826]
[1748190166578,0.01954234,106610.0,106600.0,0.37854741]
[1748190166829,0.03544234,106610.0,106600.0,0.65896]
[1748190167043,0.03544234,106610.0,106600.0,0.001]
[1748190167044,0.13436709,106610.0,106600.0,0.001]
[1748190167253,0.13436717,106610.0,106600.0,0.001]
[1748190167457,0.1249879,106610.0,106600.0,0.001]
[1748190167859,0.16250623,106610.0,106600.0,0.001]
[1748190168130,0.14374654,106610.0,106600.0,0.001]
[1748190168345,0.15312625,106610.0,106600.0,0.001]
[1748190168516,0.15312617,106610.0,106600.0,0.001]
[1748190169105,0.1249879,106610.0,106600.0,0.001]
[1748190171308,0.1531266,106610.0,106600.0,0.001]
[1748190171474,0.13436726,106610.0,106600.0,0.001]
[1748190171675,0.1249879,106610.0,106600.0,0.001]
[1748190172659,0.13436709,106610.0,106600.0,0.001]
[1748190173057,0.14374645,106610.0,106600.0,0.001]
[1748190173264,0.1249879,106610.0,106600.0,0.001]
[1748190174131,0.016,106600.0,106580.0,0.31796]
[1748190174415,0.1241879,106610.0,106590.0,0.15218512]
[1748190175092,0.1221879,106610.0,106590.0,0.15218512]
[1748190175825,0.03264234,106610.0,106590.0,0.15218512]
[1748190176045,0.01614234,106610.0,106590.0,0.15218512]
[1748190176467,0.03254234,106610.0,106590.0,0.14984]
[1748190176890,0.03354234,106610.0,106590.0,0.14984]
[1748190177289,0.03354234,106610.0,106590.0,0.14988]
[1748190178326,0.03554234,106610.0,106600.0,0.00234495]
[1748190178525,0.03554234,106610.0,106590.0,0.14988]
[1748190179112,0.03454234,106610.0,106590.0,0.14988]
[1748190179290,0.03454234,106610.0,106600.0,0.00234489]
[1748190179490,0.03654234,106610.0,106600.0,0.00234489]
[1748190179756,0.00414234,106610.0,106600.0,0.00234489]
[1748190179958,0.03394234,106610.0,106590.0,0.14988]
[1748190180196,0.03394234,106610.0,106600.0,0.001]
[1748190180197,0.03794234,106610.0,106600.0,0.001]
[1748190180400,0.1254879,106610.0,106600.0,0.15084]
[1748190180599,0.1244879,106610.0,106600.0,0.15084]
[1748190180838,0.1234879,106610.0,106600.0,0.14984]
[1748190181044,0.0319,106600.0,106590.0,0.14988]
[1748190181252,0.12144556,106600.0,106590.0,4e-05]
[1748190181467,0.13082563,106600.0,106590.0,4e-05]
[1748190181673,0.14020578,106600.0,106590.0,4e-05]
[1748190181878,0.12144556,106600.0,106590.0,4e-05]
[1748190182326,0.13082563,106600.0,106590.0,4e-05]
[1748190182536,0.13182563,106600.0,106590.0,4e-05]
[1748190182718,0.14120587,106600.0,106590.0,4e-05]
[1748190182916,0.12244556,106600.0,106590.0,4e-05]
[1748190183118,0.12144556,106600.0,106590.0,4e-05]
[1748190183532,0.14020613,106600.0,106590.0,4e-05]
[1748190183697,0.32782339,106600.0,106590.0,4e-05]
[1748190184054,0.16088503,106600.0,106590.0,4e-05]
[1748190184559,0.15888503,106600.0,106590.0,4e-05]
[1748190184788,0.35150229,106600.0,106590.0,0.00104]
[1748190184991,0.36088315,106600.0,106590.0,0.00104]
[1748190185198,0.35988315,106600.0,106590.0,0.00104]
[1748190185405,0.35029826,106600.0,106590.0,0.00104]
[1748190185610,0.35329826,106600.0,106590.0,0.00104]
[1748190187119,0.33453707,106600.0,106590.0,0.00104]
[1748190187558,0.32515621,106600.0,106590.0,0.00104]
[1748190188189,0.33453698,106600.0,106590.0,0.00104]
[1748190188411,0.34391749,106600.0,106590.0,0.00104]
[1748190188623,0.33453698,106600.0,106590.0,0.00104]
[1748190188831,0.32515621,106600.0,106590.0,0.00104]
[1748190190383,0.34391731,106600.0,106590.0,0.00104]
[1748190190592,0.41751744,106600.0,106590.0,0.00104]
[1748190191212,0.40813658,106600.0,106590.0,0.00104]
[1748190191433,0.21113864,106600.0,106590.0,0.00104]
[1748190191664,0.19258254,106600.0,106590.0,0.00104]
[1748190191872,0.17756483,106600.0,106590.0,0.00104]
[1748190192502,0.16176483,106600.0,106590.0,0.00104]
[1748190192708,0.07221927,106600.0,106590.0,0.01032974]
[1748190192936,0.07221927,106600.0,106590.0,0.01267491]
[1748190192937,0.008,106600.0,106590.0,0.01267491]
[1748190193119,0.008,106600.0,106590.0,0.00338517]
[1748190193419,0.008,106600.0,106590.0,0.03538517]
[1748190193889,0.008,106600.0,106590.0,0.00104]
[1748190194105,0.0237,106600.0,106580.0,0.01554]
[1748190194305,0.0237,106600.0,106580.0,0.35458085]
[1748190194835,0.0397,106600.0,106580.0,0.35458085]
[1748190195341,0.0397,106600.0,106580.0,0.65792]
[1748190195342,0.12624556,106600.0,106580.0,0.65792]
[1748190195717,0.11224556,106600.0,106580.0,0.65792]
[1748190195934,0.007,106600.0,106580.0,0.69082]
[1748190196128,0.007,106600.0,106590.0,0.00234524]
[1748190196483,0.002,106600.0,106590.0,0.00234524]
[1748190196707,0.005,106600.0,106590.0,0.00234524]
[1748190197188,0.002,106600.0,106590.0,0.00234524]
[1748190197430,0.002,106600.0,106590.0,0.00334524]
[1748190197635,0.007,106600.0,106590.0,0.00334524]
[1748190197859,0.007,106600.0,106590.0,0.001]
[1748190198004,0.0223,106600.0,106590.0,0.001]
[1748190199015,0.0203,106600.0,106590.0,0.001]
[1748190199222,0.0385,106600.0,106590.0,0.001]
[1748190200872,0.0233,106600.0,106590.0,0.001]
[1748190202051,0.008,106600.0,106590.0,0.001]
[1748190202994,0.008,106600.0,106590.0,0.00334517]
[1748190203202,0.008,106600.0,106590.0,0.01904517]
[1748190203637,0.008,106600.0,106590.0,0.03544517]
[1748190205031,0.008,106600.0,106590.0,0.04998602]
[1748190208086,0.008,106600.0,106590.0,0.04764085]
[1748190208973,0.008,106600.0,106590.0,0.03124085]
[1748190210467,0.008,106600.0,106590.0,0.01554085]
[1748190210698,0.0243,106600.0,106590.0,0.16538085]
[1748190211121,0.0243,106600.0,106590.0,0.15084]
[1748190211332,0.008,106600.0,106590.0,0.15084]
[1748190213339,0.008,106600.0,106590.0,0.15318507]
[1748190213658,0.008,106600.0,106590.0,0.8704249]
[1748190213873,0.008,106600.0,106590.0,0.89877983]
[1748190214878,0.008,106600.0,106590.0,0.88307983]
[1748190215344,0.008,106600.0,106590.0,0.89877983]
[1748190215552,0.008,106600.0,106590.0,1.23877983]
[1748190218382,0.008,106600.0,106590.0,1.22307983]
[1748190218593,0.008,106600.0,106590.0,0.50538085]
[1748190219030,0.0391,106600.0,106590.0,0.49084]
[1748190219241,0.0391,106600.0,106590.0,0.341]
[1748190219442,0.0391,106600.0,106590.0,0.65872]
[1748190220315,0.0391,106600.0,106590.0,0.31872]
[1748190224173,0.0391,106600.0,106590.0,0.16888]
[1748190227131,0.13802571,106600.0,106590.0,0.001]
[1748190227334,0.14740613,106600.0,106590.0,0.001]
[1748190227539,0.15678637,106600.0,106590.0,0.001]
[1748190227749,0.14740587,106600.0,106590.0,0.001]
[1748190227951,0.13802563,106600.0,106590.0,0.001]
[1748190228161,0.14740596,106600.0,106590.0,0.001]
[1748190229605,0.13802563,106600.0,106590.0,0.001]
[1748190229793,0.14740587,106600.0,106590.0,0.001]
[1748190230192,0.14740578,106600.0,106590.0,0.001]
[1748190230746,0.15678611,106600.0,106590.0,0.001]
[1748190232096,0.16616653,106600.0,106590.0,0.001]
[1748190233160,0.14740578,106600.0,106590.0,0.001]
[1748190233369,0.15678611,106600.0,106590.0,0.001]
[1748190233544,0.13802563,106600.0,106590.0,0.001]
[1748190233773,0.12864556,106600.0,106590.0,0.001]
[1748190233904,0.13802571,106600.0,106590.0,0.001]
[1748190234673,0.14740604,106600.0,106590.0,0.001]
[1748190234912,0.0235,106600.0,106590.0,0.00334545]
[1748190235124,0.0235,106600.0,106590.0,0.70369898]
[1748190235545,0.0235,106600.0,106590.0,0.001]
[1748190235750,0.008,106600.0,106590.0,0.001]
[1748190235980,0.07223011,106600.0,106590.0,0.001]
[1748190237994,0.08723011,106600.0,106590.0,0.001]
[1748190238170,0.10313011,106600.0,106590.0,0.001]
[1748190239538,0.0389,106600.0,106590.0,0.001]
[1748190241180,0.12844556,106600.0,106590.0,0.001]
[1748190241378,0.13782571,106600.0,106590.0,0.001]
[1748190241588,0.14720604,106600.0,106590.0,0.001]
[1748190241786,0.15658646,106600.0,106590.0,0.001]
[1748190241992,0.13782571,106600.0,106590.0,0.001]
[1748190242524,0.14720604,106600.0,106590.0,0.001]
[1748190242979,0.15657586,106600.0,106590.0,0.001]
[1748190243868,0.17533696,106600.0,106590.0,0.001]
[1748190244282,0.17533687,106600.0,106590.0,0.001]
[1748190244483,0.14719553,106600.0,106590.0,0.001]
[1748190244602,0.13781538,106600.0,106590.0,0.001]
[1748190244811,0.14719562,106600.0,106590.0,0.001]
[1748190245094,0.21143411,106600.0,106590.0,0.001]
[1748190245305,0.21143402,106600.0,106590.0,0.001]
[1748190245831,0.22081435,106600.0,106590.0,0.001]
[1748190246043,0.21143402,106600.0,106590.0,0.001]
[1748190246467,0.19268405,106600.0,106590.0,0.001]
[1748190247276,0.20206412,106600.0,106590.0,0.001]
[1748190247685,0.21144436,106600.0,106590.0,0.001]
[1748190247894,0.21144427,106600.0,106590.0,0.001]
[1748190248451,0.19268405,106600.0,106590.0,0.001]
[1748190248667,0.2020642,106600.0,106590.0,0.001]
[1748190250030,0.21164287,106600.0,106590.0,0.001]
[1748190250469,0.20226272,106600.0,106590.0,0.001]
[1748190250673,0.21164287,106600.0,106590.0,0.001]
[1748190252639,0.21164279,106600.0,106590.0,0.001]
[1748190252843,0.22102312,106600.0,106590.0,0.001]
[1748190253050,0.21164279,106600.0,106590.0,0.001]
[1748190254171,0.21164279,106600.0,106590.0,0.006]
[1748190255193,0.22102303,106600.0,106590.0,0.006]
[1748190255638,0.22102294,106600.0,106590.0,0.006]
[1748190257846,0.23040318,106600.0,106590.0,0.006]
[1748190258061,1.13948096,106600.0,106590.0,0.006]
[1748190258236,0.94248355,106600.0,106590.0,0.006]
[1748190258450,1.13663666,106600.0,106590.0,0.006]
[1748190258628,1.14601752,106600.0,106590.0,0.006]
[1748190258974,1.13663728,106600.0,106590.0,0.006]
[1748190259200,0.93963916,106600.0,106590.0,0.006]
[1748190259403,0.42455744,106600.0,106590.0,0.006]
[1748190260530,0.23694018,106600.0,106590.0,0.006]
[1748190260730,0.4339383,106600.0,106590.0,0.006]
[1748190261789,1.13663728,106600.0,106590.0,0.006]
[1748190261989,1.47663728,106600.0,106590.0,0.006]
[1748190262305,0.7739383,106600.0,106590.0,0.006]
[1748190262863,0.7430383,106600.0,106580.0,4e-05]
[1748190263068,0.12104556,106590.0,106580.0,4e-05]
[1748190263497,0.13042651,106590.0,106580.0,4e-05]
[1748190264902,0.12104556,106590.0,106580.0,4e-05]
[1748190265185,0.13042659,106590.0,106580.0,0.00104]
[1748190265419,0.13042659,106590.0,106580.0,4e-05]
[1748190265625,0.10564556,106590.0,106580.0,4e-05]
[1748190265785,0.11064556,106590.0,106580.0,0.00104]
[1748190266134,0.12704556,106590.0,106580.0,0.00104]
[1748190266325,0.13642651,106590.0,106580.0,0.00104]
[1748190266824,0.12704556,106590.0,106580.0,0.00104]
[1748190267032,1.09122294,106590.0,106580.0,0.00104]
[1748190267242,1.38267811,106590.0,106580.0,0.00104]
[1748190267444,1.7187819,106590.0,106580.0,0.00104]
[1748190268013,1.7167819,106590.0,106580.0,0.00104]
[1748190268221,1.7137819,106590.0,106580.0,4e-05]
[1748190268437,1.74078609,106590.0,106580.0,0.00104]
[1748190268662,1.8743076,106590.0,106580.0,4e-05]
[1748190268871,1.81778609,106590.0,106580.0,4e-05]
[1748190269093,1.82578609,106590.0,106580.0,0.00104]
[1748190269286,1.83478609,106590.0,106580.0,0.00104]
[1748190269835,1.54932694,106590.0,106580.0,0.00104]
[1748190270018,1.53082079,106590.0,106580.0,0.00104]
[1748190270171,1.6203423,106590.0,106580.0,0.00104]
[1748190270367,0.04198456,106550.0,106530.0,0.7295318]
[1748190270596,0.08954556,106540.0,106530.0,0.7295318]
[1748190270747,0.08954556,106540.0,106530.0,0.3923718]
[1748190270955,0.08954556,106540.0,106530.0,0.2424918]
[1748190271194,0.08954556,106540.0,106530.0,0.0748118]
[1748190271406,0.114531,106540.0,106530.0,0.0748118]
[1748190271572,0.11458149,106540.0,106530.0,0.0758118]
[1748190271781,0.11458149,106540.0,106530.0,0.001]
[1748190271978,0.11458149,106540.0,106520.0,0.14988]
[1748190271979,0.13335315,106540.0,106520.0,0.14988]
[1748190272214,0.14845307,106540.0,106530.0,0.001]
[1748190272424,0.14845298,106540.0,106530.0,0.001]
[1748190272624,0.0156,106530.0,106500.0,0.0268]
[1748190272860,0.08854556,106520.0,106510.0,0.14988]
[1748190273069,0.08854556,106520.0,106500.0,0.36870627]
[1748190274089,0.08854556,106520.0,106500.0,0.05114627]
[1748190274216,0.08854556,106520.0,106500.0,0.35304627]
[1748190274419,0.10614556,106520.0,106500.0,0.33744627]
[1748190274839,0.10614556,106520.0,106500.0,0.33817442]
[1748190275036,0.10614556,106520.0,106500.0,0.17882]
[1748190275318,0.10614556,106520.0,106500.0,0.32874]
[1748190275526,0.10814556,106520.0,106500.0,0.32874]
[1748190275748,0.10814556,106520.0,106500.0,0.0111]
[1748190275749,0.14332004,106520.0,106500.0,0.0111]
[1748190275954,0.10814556,106520.0,106500.0,0.0111]
[1748190276175,0.09254556,106520.0,106500.0,0.0428]
[1748190276377,0.09254556,106520.0,106500.0,0.05214661]
[1748190276605,0.09254556,106520.0,106500.0,0.0267]
[1748190276775,0.15300795,106520.0,106500.0,0.0111]
[1748190277006,0.12484556,106520.0,106500.0,0.0111]
[1748190277695,0.13423267,106520.0,106500.0,0.0111]
[1748190277905,0.12484556,106520.0,106500.0,0.0111]
[1748190278701,0.09254556,106520.0,106500.0,0.75488033]
[1748190278911,0.004,106520.0,106510.0,1.85216095]
[1748190279103,0.004,106520.0,106510.0,1.88961298]
[1748190279368,0.004,106520.0,106510.0,1.86435483]
[1748190279593,0.004,106520.0,106510.0,2.65659937]
[1748190279805,0.004,106520.0,106510.0,2.68185752]
[1748190280025,0.004,106520.0,106510.0,1.98202239]
[1748190280182,0.002,106520.0,106510.0,1.98202239]
[1748190280395,0.005,106520.0,106510.0,1.98202239]
[1748190281233,0.002,106520.0,106510.0,1.20660739]
[1748190281437,5.049e-05,106540.0,106520.0,0.01454085]
[1748190281662,5.049e-05,106540.0,106530.0,1.24070608]
[1748190281868,5.049e-05,106540.0,106530.0,1.23835983]
[1748190282188,5.049e-05,106540.0,106530.0,2.43966483]
[1748190282393,5.049e-05,106540.0,106530.0,2.12326783]
[1748190282603,0.00105049,106540.0,106530.0,1.92863383]
[1748190283172,5.049e-05,106540.0,106530.0,1.23835983]
[1748190283375,0.00105049,106540.0,106530.0,1.23835983]
[1748190283588,0.00105049,106540.0,106530.0,1.40579983]
[1748190283818,0.00105049,106540.0,106530.0,1.70032883]
[1748190284025,0.00105049,106540.0,106530.0,1.78987439]
[1748190284872,0.0748118,106580.0,106560.0,0.0312]
[1748190285080,0.1644079,106580.0,106570.0,0.70269898]
[1748190285279,0.1644079,106580.0,106560.0,1.05125898]
[1748190285493,5.054e-05,106580.0,106570.0,0.70269898]
[1748190285698,5.054e-05,106580.0,106570.0,0.73389898]
[1748190285879,5.054e-05,106580.0,106570.0,0.74843983]
[1748190286084,0.00505054,106580.0,106570.0,0.04574085]
[1748190286254,0.00505054,106580.0,106570.0,0.04808628]
[1748190286460,5.054e-05,106580.0,106570.0,0.04808628]
[1748190286662,0.00505054,106580.0,106570.0,0.04808628]
[1748190286865,0.00505054,106580.0,106570.0,0.02994085]
[1748190287065,0.00505054,106580.0,106570.0,0.01454085]
[1748190287261,0.00705054,106580.0,106570.0,0.01454085]
[1748190287571,0.00705054,106580.0,106570.0,4e-05]
[1748190287794,0.01005054,106580.0,106570.0,0.00104]
[1748190288237,0.1153961,106580.0,106570.0,0.00104]
[1748190288448,0.1311961,106580.0,106570.0,0.00104]
[1748190289806,0.1405781,106580.0,106570.0,0.00104]
[1748190290769,0.14057801,106580.0,106570.0,0.00104]
[1748190290993,0.35637727,106580.0,106570.0,0.00104]
[1748190291325,0.02518279,106570.0,106550.0,0.31732]
[1748190291532,0.13052835,106570.0,106550.0,0.31732]
[1748190292029,0.13052827,106570.0,106550.0,0.31732]
[1748190292324,0.13991124,106570.0,106540.0,0.33186085]
[1748190292523,0.13991115,106570.0,106540.0,0.33186085]
[1748190292704,0.13152827,106570.0,106550.0,0.002]
[1748190293532,0.08954556,106560.0,106550.0,0.002]
[1748190293934,0.08954556,106560.0,106550.0,0.001]
[1748190294305,0.03165054,106580.0,106550.0,0.65990043]
[1748190294692,0.08954556,106570.0,106550.0,0.65990043]
[1748190294892,0.09992827,106570.0,106550.0,0.001]
[1748190295191,0.0158,106560.0,106550.0,0.15088]
[1748190295390,0.10534556,106560.0,106550.0,0.15088]
[1748190295641,0.10534556,106560.0,106550.0,0.14988]
[1748190295841,0.10534556,106560.0,106550.0,0.001]
[1748190296052,0.13092915,106560.0,106530.0,0.65894043]
[1748190296261,0.08954556,106550.0,106530.0,0.31736]
[1748190297484,0.10584556,106550.0,106530.0,0.31736]
[1748190297687,0.12204556,106550.0,106530.0,0.31736]
[1748190297895,0.12204556,106550.0,106530.0,0.16748]
[1748190298096,0.12404556,106550.0,106530.0,0.31736]
[1748190298625,0.12204556,106550.0,106530.0,0.31736]
[1748190298752,0.12504556,106550.0,106530.0,0.3174]
[1748190300054,0.12704556,106550.0,106530.0,0.3174]
[1748190300583,0.12704556,106550.0,106530.0,4e-05]
[1748190300792,0.12704556,106550.0,106530.0,0.14996]
[1748190301407,0.13643003,106550.0,106530.0,0.14996]
[1748190301859,0.13643003,106550.0,106530.0,4e-05]
[1748190302166,0.12704556,106550.0,106530.0,0.14996]
[1748190303361,0.13643003,106550.0,106530.0,0.14996]
[1748190303751,0.12704556,106550.0,106530.0,0.14996]
[1748190303954,0.0163,106540.0,106530.0,0.14996]
[1748190304154,0.10584556,106540.0,106530.0,0.14996]
[1748190304984,0.10884556,106540.0,106530.0,0.14996]
[1748190305194,0.10884556,106540.0,106530.0,0.15011166]
[1748190305392,0.11084556,106540.0,106530.0,0.15011166]
[1748190307553,0.11084556,106540.0,106530.0,0.00019166]
[1748190307742,0.11084556,106540.0,106530.0,0.15011166]
[1748190308078,0.12634556,106540.0,106530.0,0.00019166]
[1748190314898,0.13573091,106540.0,106530.0,0.00019166]
[1748190315609,0.12634556,106540.0,106530.0,0.00019166]
[1748190316935,0.3328397,106540.0,106530.0,0.00019166]
[1748190317137,1.03639903,106540.0,106530.0,0.00019166]
[1748190317341,1.37639903,106540.0,106530.0,0.00019166]
[1748190317694,0.67933565,106540.0,106530.0,0.00019166]
[1748190318193,0.67084014,106540.0,106530.0,0.00019166]
[1748190318606,0.68600803,106540.0,106530.0,0.00119166]
[1748190319165,0.67362233,106540.0,106530.0,0.00119166]
[1748190319377,0.68162233,106540.0,106530.0,0.00119166]
[1748190319990,1.38518122,106540.0,106530.0,0.00119166]
[1748190321021,1.54163673,106540.0,106530.0,0.00119166]
[1748190321182,1.54163673,106540.0,106530.0,0.00089062]
[1748190322566,1.60163673,106540.0,106530.0,0.00089062]
[1748190323883,1.90163673,106540.0,106530.0,0.00089062]
[1748190324355,1.96580226,106540.0,106530.0,0.00089062]
[1748190325024,1.6963602,106540.0,106530.0,0.00089062]
[1748190326258,0.5765337,106520.0,106510.0,4e-05]
[1748190326473,1.36963815,106520.0,106510.0,0.00054562]
[1748190327276,1.37613366,106520.0,106510.0,0.00054562]
[1748190327401,1.38013366,106520.0,106510.0,0.00054562]
[1748190327932,0.67657477,106520.0,106510.0,0.00054562]
[1748190328702,1.36425051,106520.0,106510.0,0.00054562]
[1748190329435,0.66069162,106520.0,106510.0,0.00054562]
[1748190329687,0.10454556,106520.0,106510.0,0.00054562]
[1748190329911,0.08954556,106520.0,106510.0,0.00054562]
[1748190330132,0.11993285,106520.0,106510.0,0.00054562]
[1748190330343,0.11054556,106520.0,106510.0,0.00054562]
[1748190330775,0.11354556,106520.0,106510.0,0.00054562]
[1748190331223,0.10793267,106520.0,106510.0,0.00054562]
[1748190331394,0.16170768,106520.0,106510.0,0.00154562]
[1748190331600,0.17109523,106520.0,106510.0,0.00154562]
[1748190331975,0.45776272,106520.0,106510.0,0.00154562]
[1748190332189,1.83359816,106520.0,106510.0,0.00154562]